{"text_format":"1","workbook":"xlsx","n_sheets":5,"sheets":["overview","fighting","duo","Newaza","Codestable"],"not_rendered":{"charts":0,"images":0,"macros":0,"external_links":0,"defined_names":8,"comments":1,"pivot_tables":0},"unopened":[],"bounds":{"document_bytes":16777216,"sheet_cells":100000,"rows_first":2000,"rows_last":500,"rows_between":2000,"halvings":0,"cell_chars":16384,"cell_head_chars":4096},"cells_cut":0,"cells_raw":0,"read":"whole","date_system":"1900"}

{"sheet":"overview","index":0,"n_rows":25,"n_cols":2,"rows_kept":25,"cut":false,"hidden":false,"merged":[[17,1,17,4],[24,1,29,4]]}
[]
[null,"Vereinsmeldung über Ju-Jutu-Web.de"]
[]
[]
[null,"Verein"]
[]
[]
[]
[]
[null,"Veranstaltung"]
[]
[]
[]
[]
[]
[]
[]
[null,"Die Meldedatei wird im gleichen Verzeichnis erstellt, in der sich diese Exceldatei befindet.\nDer Name der Datei lautet <Veranstaltung>_<Verein>.jjw"]
[]
[]
[]
[]
[]
[]
[null,"Hinweis: \nBitte verwenden Sie das Excel nur im vorgesehenen Zustand und löschen Sie keine Zelle oder fügen Sie auch keine hinzu. Das Excel hat verschichdene Formeln und Makros, die es zur Bearbeitung benötigt. Sollten Sie Änderungen vornehmen, so kann es sein, dass Ihre Meldung am Server abgewiesen wird oder fehlerhaft ist. Dafür trägt ju-jutsu-web.de nicht das Risiko. "]

{"sheet":"fighting","index":1,"n_rows":51,"n_cols":7,"rows_kept":51,"cut":false,"hidden":false,"merged":[]}
["Nr.","Name","Vorname","Geb. Datum","Gewicht","Verein","Geschlecht"]
[1,null,null,null,null,{"$f":"IF(B2<>\"\",IF(overview!$D$5=\"\",IF(overview!$D$6=\"\",\"\",overview!$D$6),overview!$D$5),\"\")","v":""}]
[2,null,null,null,null,{"$f":"IF(B3<>\"\",IF(overview!$D$5=\"\",IF(overview!$D$6=\"\",\"\",overview!$D$6),overview!$D$5),\"\")","v":""}]
[3,null,null,null,null,{"$f":"IF(B4<>\"\",IF(overview!$D$5=\"\",IF(overview!$D$6=\"\",\"\",overview!$D$6),overview!$D$5),\"\")","v":""}]
[4,null,null,null,null,{"$f":"IF(B5<>\"\",IF(overview!$D$5=\"\",IF(overview!$D$6=\"\",\"\",overview!$D$6),overview!$D$5),\"\")","v":""}]
[5,null,null,null,null,{"$f":"IF(B6<>\"\",IF(overview!$D$5=\"\",IF(overview!$D$6=\"\",\"\",overview!$D$6),overview!$D$5),\"\")","v":""}]
[6,null,null,null,null,{"$f":"IF(B7<>\"\",IF(overview!$D$5=\"\",IF(overview!$D$6=\"\",\"\",overview!$D$6),overview!$D$5),\"\")","v":""}]
[7,null,null,null,null,{"$f":"IF(B8<>\"\",IF(overview!$D$5=\"\",IF(overview!$D$6=\"\",\"\",overview!$D$6),overview!$D$5),\"\")","v":""}]
[8,null,null,null,null,{"$f":"IF(B9<>\"\",IF(overview!$D$5=\"\",IF(overview!$D$6=\"\",\"\",overview!$D$6),overview!$D$5),\"\")","v":""}]
[9,null,null,null,null,{"$f":"IF(B10<>\"\",IF(overview!$D$5=\"\",IF(overview!$D$6=\"\",\"\",overview!$D$6),overview!$D$5),\"\")","v":""}]
[10,null,null,null,null,{"$f":"IF(B11<>\"\",IF(overview!$D$5=\"\",IF(overview!$D$6=\"\",\"\",overview!$D$6),overview!$D$5),\"\")","v":""}]
[11,null,null,null,null,{"$f":"IF(B12<>\"\",IF(overview!$D$5=\"\",IF(overview!$D$6=\"\",\"\",overview!$D$6),overview!$D$5),\"\")","v":""}]
[12,null,null,null,null,{"$f":"IF(B13<>\"\",IF(overview!$D$5=\"\",IF(overview!$D$6=\"\",\"\",overview!$D$6),overview!$D$5),\"\")","v":""}]
[13,null,null,null,null,{"$f":"IF(B14<>\"\",IF(overview!$D$5=\"\",IF(overview!$D$6=\"\",\"\",overview!$D$6),overview!$D$5),\"\")","v":""}]
[14,null,null,null,null,{"$f":"IF(B15<>\"\",IF(overview!$D$5=\"\",IF(overview!$D$6=\"\",\"\",overview!$D$6),overview!$D$5),\"\")","v":""}]
[15,null,null,null,null,{"$f":"IF(B16<>\"\",IF(overview!$D$5=\"\",IF(overview!$D$6=\"\",\"\",overview!$D$6),overview!$D$5),\"\")","v":""}]
[16,null,null,null,null,{"$f":"IF(B17<>\"\",IF(overview!$D$5=\"\",IF(overview!$D$6=\"\",\"\",overview!$D$6),overview!$D$5),\"\")","v":""}]
[17,null,null,null,null,{"$f":"IF(B18<>\"\",IF(overview!$D$5=\"\",IF(overview!$D$6=\"\",\"\",overview!$D$6),overview!$D$5),\"\")","v":""}]
[18,null,null,null,null,{"$f":"IF(B19<>\"\",IF(overview!$D$5=\"\",IF(overview!$D$6=\"\",\"\",overview!$D$6),overview!$D$5),\"\")","v":""}]
[19,null,null,null,null,{"$f":"IF(B20<>\"\",IF(overview!$D$5=\"\",IF(overview!$D$6=\"\",\"\",overview!$D$6),overview!$D$5),\"\")","v":""}]
[20,null,null,null,null,{"$f":"IF(B21<>\"\",IF(overview!$D$5=\"\",IF(overview!$D$6=\"\",\"\",overview!$D$6),overview!$D$5),\"\")","v":""}]
[21,null,null,null,null,{"$f":"IF(B22<>\"\",IF(overview!$D$5=\"\",IF(overview!$D$6=\"\",\"\",overview!$D$6),overview!$D$5),\"\")","v":""}]
[22,null,null,null,null,{"$f":"IF(B23<>\"\",IF(overview!$D$5=\"\",IF(overview!$D$6=\"\",\"\",overview!$D$6),overview!$D$5),\"\")","v":""}]
[23,null,null,null,null,{"$f":"IF(B24<>\"\",IF(overview!$D$5=\"\",IF(overview!$D$6=\"\",\"\",overview!$D$6),overview!$D$5),\"\")","v":""}]
[24,null,null,null,null,{"$f":"IF(B25<>\"\",IF(overview!$D$5=\"\",IF(overview!$D$6=\"\",\"\",overview!$D$6),overview!$D$5),\"\")","v":""}]
[25,null,null,null,null,{"$f":"IF(B26<>\"\",IF(overview!$D$5=\"\",IF(overview!$D$6=\"\",\"\",overview!$D$6),overview!$D$5),\"\")","v":""}]
[26,null,null,null,null,{"$f":"IF(B27<>\"\",IF(overview!$D$5=\"\",IF(overview!$D$6=\"\",\"\",overview!$D$6),overview!$D$5),\"\")","v":""}]
[27,null,null,null,null,{"$f":"IF(B28<>\"\",IF(overview!$D$5=\"\",IF(overview!$D$6=\"\",\"\",overview!$D$6),overview!$D$5),\"\")","v":""}]
[28,null,null,null,null,{"$f":"IF(B29<>\"\",IF(overview!$D$5=\"\",IF(overview!$D$6=\"\",\"\",overview!$D$6),overview!$D$5),\"\")","v":""}]
[29,null,null,null,null,{"$f":"IF(B30<>\"\",IF(overview!$D$5=\"\",IF(overview!$D$6=\"\",\"\",overview!$D$6),overview!$D$5),\"\")","v":""}]
[30,null,null,null,null,{"$f":"IF(B31<>\"\",IF(overview!$D$5=\"\",IF(overview!$D$6=\"\",\"\",overview!$D$6),overview!$D$5),\"\")","v":""}]
[31,null,null,null,null,{"$f":"IF(B32<>\"\",IF(overview!$D$5=\"\",IF(overview!$D$6=\"\",\"\",overview!$D$6),overview!$D$5),\"\")","v":""}]
[32,null,null,null,null,{"$f":"IF(B33<>\"\",IF(overview!$D$5=\"\",IF(overview!$D$6=\"\",\"\",overview!$D$6),overview!$D$5),\"\")","v":""}]
[33,null,null,null,null,{"$f":"IF(B34<>\"\",IF(overview!$D$5=\"\",IF(overview!$D$6=\"\",\"\",overview!$D$6),overview!$D$5),\"\")","v":""}]
[34,null,null,null,null,{"$f":"IF(B35<>\"\",IF(overview!$D$5=\"\",IF(overview!$D$6=\"\",\"\",overview!$D$6),overview!$D$5),\"\")","v":""}]
[35,null,null,null,null,{"$f":"IF(B36<>\"\",IF(overview!$D$5=\"\",IF(overview!$D$6=\"\",\"\",overview!$D$6),overview!$D$5),\"\")","v":""}]
[36,null,null,null,null,{"$f":"IF(B37<>\"\",IF(overview!$D$5=\"\",IF(overview!$D$6=\"\",\"\",overview!$D$6),overview!$D$5),\"\")","v":""}]
[37,null,null,null,null,{"$f":"IF(B38<>\"\",IF(overview!$D$5=\"\",IF(overview!$D$6=\"\",\"\",overview!$D$6),overview!$D$5),\"\")","v":""}]
[38,null,null,null,null,{"$f":"IF(B39<>\"\",IF(overview!$D$5=\"\",IF(overview!$D$6=\"\",\"\",overview!$D$6),overview!$D$5),\"\")","v":""}]
[39,null,null,null,null,{"$f":"IF(B40<>\"\",IF(overview!$D$5=\"\",IF(overview!$D$6=\"\",\"\",overview!$D$6),overview!$D$5),\"\")","v":""}]
[40,null,null,null,null,{"$f":"IF(B41<>\"\",IF(overview!$D$5=\"\",IF(overview!$D$6=\"\",\"\",overview!$D$6),overview!$D$5),\"\")","v":""}]
[41,null,null,null,null,{"$f":"IF(B42<>\"\",IF(overview!$D$5=\"\",IF(overview!$D$6=\"\",\"\",overview!$D$6),overview!$D$5),\"\")","v":""}]
[42,null,null,null,null,{"$f":"IF(B43<>\"\",IF(overview!$D$5=\"\",IF(overview!$D$6=\"\",\"\",overview!$D$6),overview!$D$5),\"\")","v":""}]
[43,null,null,null,null,{"$f":"IF(B44<>\"\",IF(overview!$D$5=\"\",IF(overview!$D$6=\"\",\"\",overview!$D$6),overview!$D$5),\"\")","v":""}]
[44,null,null,null,null,{"$f":"IF(B45<>\"\",IF(overview!$D$5=\"\",IF(overview!$D$6=\"\",\"\",overview!$D$6),overview!$D$5),\"\")","v":""}]
[45,null,null,null,null,{"$f":"IF(B46<>\"\",IF(overview!$D$5=\"\",IF(overview!$D$6=\"\",\"\",overview!$D$6),overview!$D$5),\"\")","v":""}]
[46,null,null,null,null,{"$f":"IF(B47<>\"\",IF(overview!$D$5=\"\",IF(overview!$D$6=\"\",\"\",overview!$D$6),overview!$D$5),\"\")","v":""}]
[47,null,null,null,null,{"$f":"IF(B48<>\"\",IF(overview!$D$5=\"\",IF(overview!$D$6=\"\",\"\",overview!$D$6),overview!$D$5),\"\")","v":""}]
[48,null,null,null,null,{"$f":"IF(B49<>\"\",IF(overview!$D$5=\"\",IF(overview!$D$6=\"\",\"\",overview!$D$6),overview!$D$5),\"\")","v":""}]
[49,null,null,null,null,{"$f":"IF(B50<>\"\",IF(overview!$D$5=\"\",IF(overview!$D$6=\"\",\"\",overview!$D$6),overview!$D$5),\"\")","v":""}]
[50,null,null,null,null,{"$f":"IF(B51<>\"\",IF(overview!$D$5=\"\",IF(overview!$D$6=\"\",\"\",overview!$D$6),overview!$D$5),\"\")","v":""}]

{"sheet":"duo","index":2,"n_rows":100,"n_cols":6,"rows_kept":100,"cut":false,"hidden":false,"merged":[[19,5,20,5],[1,5,2,5],[3,5,4,5],[21,5,22,5],[23,5,24,5],[5,5,6,5],[13,5,14,5],[15,5,16,5],[11,0,12,0],[13,0,14,0],[15,0,16,0],[17,5,18,5],[7,5,8,5],[9,5,10,5],[11,5,12,5],[1,0,2,0],[3,0,4,0],[5,0,6,0],[7,0,8,0],[9,0,10,0],[33,5,34,5],[25,0,26,0],[27,0,28,0],[31,5,32,5],[31,0,32,0],[29,5,30,5],[29,0,30,0],[27,5,28,5],[25,5,26,5],[39,5,40,5],[41,0,42,0],[41,5,42,5],[35,0,36,0],[35,5,36,5],[37,0,38,0],[37,5,38,5],[39,0,40,0],[47,5,48,5],[49,0,50,0],[49,5,50,5],[43,0,44,0],[43,5,44,5],[45,0,46,0],[45,5,46,5],[47,0,48,0],[55,5,56,5],[57,0,58,0],[57,5,58,5],[51,0,52,0],[51,5,52,5],[53,0,54,0],[53,5,54,5],[55,0,56,0],[63,5,64,5],[65,0,66,0],[65,5,66,5],[59,0,60,0],[59,5,60,5],[61,0,62,0],[61,5,62,5],[63,0,64,0],[67,0,68,0],[67,5,68,5],[69,0,70,0],[69,5,70,5],[71,0,72,0],[77,5,78,5],[79,0,80,0],[71,5,72,5],[73,0,74,0],[73,5,74,5],[79,5,80,5],[81,0,82,0],[81,5,82,5],[75,0,76,0],[99,0,100,0],[99,5,100,5],[95,5,96,5],[97,0,98,0],[97,5,98,5],[95,0,96,0],[87,5,88,5],[89,0,90,0],[89,5,90,5],[87,0,88,0],[75,5,76,5],[77,0,78,0],[91,0,92,0],[91,5,92,5],[93,0,94,0],[93,5,94,5],[83,0,84,0],[83,5,84,5],[85,0,86,0],[85,5,86,5],[17,0,18,0],[19,0,20,0],[21,0,22,0],[23,0,24,0],[33,0,34,0]]}
["Nr.","Name","Vorname","Geb. Datum","Verein","Teamart"]
[1,null,null,null,{"$f":"IF(B2<>\"\",IF(overview!$D$5=\"\",IF(overview!$D$6=\"\",\"\",overview!$D$6),overview!$D$5),\"\")","v":""},"M"]
[]
[2,null,null,null,{"$f":"IF(B4<>\"\",IF(overview!$D$5=\"\",IF(overview!$D$6=\"\",\"\",overview!$D$6),overview!$D$5),\"\")","v":""},"X"]
[]
[3,null,null,null,{"$f":"IF(B6<>\"\",IF(overview!$D$5=\"\",IF(overview!$D$6=\"\",\"\",overview!$D$6),overview!$D$5),\"\")","v":""},"M"]
[]
[4,null,null,null,{"$f":"IF(B8<>\"\",IF(overview!$D$5=\"\",IF(overview!$D$6=\"\",\"\",overview!$D$6),overview!$D$5),\"\")","v":""},"X"]
[]
[5,null,null,null,{"$f":"IF(B10<>\"\",IF(overview!$D$5=\"\",IF(overview!$D$6=\"\",\"\",overview!$D$6),overview!$D$5),\"\")","v":""},"M"]
[]
[6,null,null,null,{"$f":"IF(B12<>\"\",IF(overview!$D$5=\"\",IF(overview!$D$6=\"\",\"\",overview!$D$6),overview!$D$5),\"\")","v":""}]
[]
[7,null,null,null,{"$f":"IF(B14<>\"\",IF(overview!$D$5=\"\",IF(overview!$D$6=\"\",\"\",overview!$D$6),overview!$D$5),\"\")","v":""}]
[]
[8,null,null,null,{"$f":"IF(B16<>\"\",IF(overview!$D$5=\"\",IF(overview!$D$6=\"\",\"\",overview!$D$6),overview!$D$5),\"\")","v":""}]
[]
[9,null,null,null,{"$f":"IF(B18<>\"\",IF(overview!$D$5=\"\",IF(overview!$D$6=\"\",\"\",overview!$D$6),overview!$D$5),\"\")","v":""}]
[]
[10,null,null,null,{"$f":"IF(B20<>\"\",IF(overview!$D$5=\"\",IF(overview!$D$6=\"\",\"\",overview!$D$6),overview!$D$5),\"\")","v":""}]
[]
[11,null,null,null,{"$f":"IF(B22<>\"\",IF(overview!$D$5=\"\",IF(overview!$D$6=\"\",\"\",overview!$D$6),overview!$D$5),\"\")","v":""}]
[]
[12,null,null,null,{"$f":"IF(B24<>\"\",IF(overview!$D$5=\"\",IF(overview!$D$6=\"\",\"\",overview!$D$6),overview!$D$5),\"\")","v":""}]
[]
[13,null,null,null,{"$f":"IF(B26<>\"\",IF(overview!$D$5=\"\",IF(overview!$D$6=\"\",\"\",overview!$D$6),overview!$D$5),\"\")","v":""}]
[]
[14,null,null,null,{"$f":"IF(B28<>\"\",IF(overview!$D$5=\"\",IF(overview!$D$6=\"\",\"\",overview!$D$6),overview!$D$5),\"\")","v":""}]
[]
[15,null,null,null,{"$f":"IF(B30<>\"\",IF(overview!$D$5=\"\",IF(overview!$D$6=\"\",\"\",overview!$D$6),overview!$D$5),\"\")","v":""}]
[]
[16,null,null,null,{"$f":"IF(B32<>\"\",IF(overview!$D$5=\"\",IF(overview!$D$6=\"\",\"\",overview!$D$6),overview!$D$5),\"\")","v":""}]
[]
[17,null,null,null,{"$f":"IF(B34<>\"\",IF(overview!$D$5=\"\",IF(overview!$D$6=\"\",\"\",overview!$D$6),overview!$D$5),\"\")","v":""}]
[]
[18,null,null,null,{"$f":"IF(B36<>\"\",IF(overview!$D$5=\"\",IF(overview!$D$6=\"\",\"\",overview!$D$6),overview!$D$5),\"\")","v":""}]
[]
[19,null,null,null,{"$f":"IF(B38<>\"\",IF(overview!$D$5=\"\",IF(overview!$D$6=\"\",\"\",overview!$D$6),overview!$D$5),\"\")","v":""}]
[]
[20,null,null,null,{"$f":"IF(B40<>\"\",IF(overview!$D$5=\"\",IF(overview!$D$6=\"\",\"\",overview!$D$6),overview!$D$5),\"\")","v":""}]
[]
[21,null,null,null,{"$f":"IF(B42<>\"\",IF(overview!$D$5=\"\",IF(overview!$D$6=\"\",\"\",overview!$D$6),overview!$D$5),\"\")","v":""}]
[]
[22,null,null,null,{"$f":"IF(B44<>\"\",IF(overview!$D$5=\"\",IF(overview!$D$6=\"\",\"\",overview!$D$6),overview!$D$5),\"\")","v":""}]
[]
[23,null,null,null,{"$f":"IF(B46<>\"\",IF(overview!$D$5=\"\",IF(overview!$D$6=\"\",\"\",overview!$D$6),overview!$D$5),\"\")","v":""}]
[]
[24,null,null,null,{"$f":"IF(B48<>\"\",IF(overview!$D$5=\"\",IF(overview!$D$6=\"\",\"\",overview!$D$6),overview!$D$5),\"\")","v":""}]
[]
[25,null,null,null,{"$f":"IF(B50<>\"\",IF(overview!$D$5=\"\",IF(overview!$D$6=\"\",\"\",overview!$D$6),overview!$D$5),\"\")","v":""}]
[]
[26,null,null,null,{"$f":"IF(B52<>\"\",IF(overview!$D$5=\"\",IF(overview!$D$6=\"\",\"\",overview!$D$6),overview!$D$5),\"\")","v":""}]
[]
[27,null,null,null,{"$f":"IF(B54<>\"\",IF(overview!$D$5=\"\",IF(overview!$D$6=\"\",\"\",overview!$D$6),overview!$D$5),\"\")","v":""}]
[]
[28,null,null,null,{"$f":"IF(B56<>\"\",IF(overview!$D$5=\"\",IF(overview!$D$6=\"\",\"\",overview!$D$6),overview!$D$5),\"\")","v":""}]
[]
[29,null,null,null,{"$f":"IF(B58<>\"\",IF(overview!$D$5=\"\",IF(overview!$D$6=\"\",\"\",overview!$D$6),overview!$D$5),\"\")","v":""}]
[]
[30,null,null,null,{"$f":"IF(B60<>\"\",IF(overview!$D$5=\"\",IF(overview!$D$6=\"\",\"\",overview!$D$6),overview!$D$5),\"\")","v":""}]
[]
[31,null,null,null,{"$f":"IF(B62<>\"\",IF(overview!$D$5=\"\",IF(overview!$D$6=\"\",\"\",overview!$D$6),overview!$D$5),\"\")","v":""}]
[]
[32,null,null,null,{"$f":"IF(B64<>\"\",IF(overview!$D$5=\"\",IF(overview!$D$6=\"\",\"\",overview!$D$6),overview!$D$5),\"\")","v":""}]
[]
[33,null,null,null,{"$f":"IF(B66<>\"\",IF(overview!$D$5=\"\",IF(overview!$D$6=\"\",\"\",overview!$D$6),overview!$D$5),\"\")","v":""}]
[]
[34,null,null,null,{"$f":"IF(B68<>\"\",IF(overview!$D$5=\"\",IF(overview!$D$6=\"\",\"\",overview!$D$6),overview!$D$5),\"\")","v":""}]
[]
[35,null,null,null,{"$f":"IF(B70<>\"\",IF(overview!$D$5=\"\",IF(overview!$D$6=\"\",\"\",overview!$D$6),overview!$D$5),\"\")","v":""}]
[]
[36,null,null,null,{"$f":"IF(B72<>\"\",IF(overview!$D$5=\"\",IF(overview!$D$6=\"\",\"\",overview!$D$6),overview!$D$5),\"\")","v":""}]
[]
[37,null,null,null,{"$f":"IF(B74<>\"\",IF(overview!$D$5=\"\",IF(overview!$D$6=\"\",\"\",overview!$D$6),overview!$D$5),\"\")","v":""}]
[]
[38,null,null,null,{"$f":"IF(B76<>\"\",IF(overview!$D$5=\"\",IF(overview!$D$6=\"\",\"\",overview!$D$6),overview!$D$5),\"\")","v":""}]
[]
[39,null,null,null,{"$f":"IF(B78<>\"\",IF(overview!$D$5=\"\",IF(overview!$D$6=\"\",\"\",overview!$D$6),overview!$D$5),\"\")","v":""}]
[]
[40,null,null,null,{"$f":"IF(B80<>\"\",IF(overview!$D$5=\"\",IF(overview!$D$6=\"\",\"\",overview!$D$6),overview!$D$5),\"\")","v":""}]
[]
[41,null,null,null,{"$f":"IF(B82<>\"\",IF(overview!$D$5=\"\",IF(overview!$D$6=\"\",\"\",overview!$D$6),overview!$D$5),\"\")","v":""}]
[]
[42,null,null,null,{"$f":"IF(B84<>\"\",IF(overview!$D$5=\"\",IF(overview!$D$6=\"\",\"\",overview!$D$6),overview!$D$5),\"\")","v":""}]
[]
[43,null,null,null,{"$f":"IF(B86<>\"\",IF(overview!$D$5=\"\",IF(overview!$D$6=\"\",\"\",overview!$D$6),overview!$D$5),\"\")","v":""}]
[]
[44,null,null,null,{"$f":"IF(B88<>\"\",IF(overview!$D$5=\"\",IF(overview!$D$6=\"\",\"\",overview!$D$6),overview!$D$5),\"\")","v":""}]
[]
[45,null,null,null,{"$f":"IF(B90<>\"\",IF(overview!$D$5=\"\",IF(overview!$D$6=\"\",\"\",overview!$D$6),overview!$D$5),\"\")","v":""}]
[]
[46,null,null,null,{"$f":"IF(B92<>\"\",IF(overview!$D$5=\"\",IF(overview!$D$6=\"\",\"\",overview!$D$6),overview!$D$5),\"\")","v":""}]
[]
[47,null,null,null,{"$f":"IF(B94<>\"\",IF(overview!$D$5=\"\",IF(overview!$D$6=\"\",\"\",overview!$D$6),overview!$D$5),\"\")","v":""}]
[]
[48,null,null,null,{"$f":"IF(B96<>\"\",IF(overview!$D$5=\"\",IF(overview!$D$6=\"\",\"\",overview!$D$6),overview!$D$5),\"\")","v":""}]
[]
[49,null,null,null,{"$f":"IF(B98<>\"\",IF(overview!$D$5=\"\",IF(overview!$D$6=\"\",\"\",overview!$D$6),overview!$D$5),\"\")","v":""}]
[]
[50,null,null,null,{"$f":"IF(B100<>\"\",IF(overview!$D$5=\"\",IF(overview!$D$6=\"\",\"\",overview!$D$6),overview!$D$5),\"\")","v":""}]

{"sheet":"Newaza","index":3,"n_rows":51,"n_cols":8,"rows_kept":51,"cut":false,"hidden":false,"merged":[]}
["Nr.","Name","Vorname","Geb. Datum","Gewicht","Verein","Geschlecht","Klasse"]
[1,null,null,null,null,{"$f":"IF(B2<>\"\",IF(overview!$D$5=\"\",IF(overview!$D$6=\"\",\"\",overview!$D$6),overview!$D$5),\"\")","v":""},"M"]
[2,null,null,null,null,{"$f":"IF(B3<>\"\",IF(overview!$D$5=\"\",IF(overview!$D$6=\"\",\"\",overview!$D$6),overview!$D$5),\"\")","v":""}]
[3,null,null,null,null,{"$f":"IF(B4<>\"\",IF(overview!$D$5=\"\",IF(overview!$D$6=\"\",\"\",overview!$D$6),overview!$D$5),\"\")","v":""}]
[4,null,null,null,null,{"$f":"IF(B5<>\"\",IF(overview!$D$5=\"\",IF(overview!$D$6=\"\",\"\",overview!$D$6),overview!$D$5),\"\")","v":""}]
[5,null,null,null,null,{"$f":"IF(B6<>\"\",IF(overview!$D$5=\"\",IF(overview!$D$6=\"\",\"\",overview!$D$6),overview!$D$5),\"\")","v":""}]
[6,null,null,null,null,{"$f":"IF(B7<>\"\",IF(overview!$D$5=\"\",IF(overview!$D$6=\"\",\"\",overview!$D$6),overview!$D$5),\"\")","v":""}]
[7,null,null,null,null,{"$f":"IF(B8<>\"\",IF(overview!$D$5=\"\",IF(overview!$D$6=\"\",\"\",overview!$D$6),overview!$D$5),\"\")","v":""}]
[8,null,null,null,null,{"$f":"IF(B9<>\"\",IF(overview!$D$5=\"\",IF(overview!$D$6=\"\",\"\",overview!$D$6),overview!$D$5),\"\")","v":""}]
[9,null,null,null,null,{"$f":"IF(B10<>\"\",IF(overview!$D$5=\"\",IF(overview!$D$6=\"\",\"\",overview!$D$6),overview!$D$5),\"\")","v":""}]
[10,null,null,null,null,{"$f":"IF(B11<>\"\",IF(overview!$D$5=\"\",IF(overview!$D$6=\"\",\"\",overview!$D$6),overview!$D$5),\"\")","v":""}]
[11,null,null,null,null,{"$f":"IF(B12<>\"\",IF(overview!$D$5=\"\",IF(overview!$D$6=\"\",\"\",overview!$D$6),overview!$D$5),\"\")","v":""}]
[12,null,null,null,null,{"$f":"IF(B13<>\"\",IF(overview!$D$5=\"\",IF(overview!$D$6=\"\",\"\",overview!$D$6),overview!$D$5),\"\")","v":""}]
[13,null,null,null,null,{"$f":"IF(B14<>\"\",IF(overview!$D$5=\"\",IF(overview!$D$6=\"\",\"\",overview!$D$6),overview!$D$5),\"\")","v":""}]
[14,null,null,null,null,{"$f":"IF(B15<>\"\",IF(overview!$D$5=\"\",IF(overview!$D$6=\"\",\"\",overview!$D$6),overview!$D$5),\"\")","v":""}]
[15,null,null,null,null,{"$f":"IF(B16<>\"\",IF(overview!$D$5=\"\",IF(overview!$D$6=\"\",\"\",overview!$D$6),overview!$D$5),\"\")","v":""}]
[16,null,null,null,null,{"$f":"IF(B17<>\"\",IF(overview!$D$5=\"\",IF(overview!$D$6=\"\",\"\",overview!$D$6),overview!$D$5),\"\")","v":""}]
[17,null,null,null,null,{"$f":"IF(B18<>\"\",IF(overview!$D$5=\"\",IF(overview!$D$6=\"\",\"\",overview!$D$6),overview!$D$5),\"\")","v":""}]
[18,null,null,null,null,{"$f":"IF(B19<>\"\",IF(overview!$D$5=\"\",IF(overview!$D$6=\"\",\"\",overview!$D$6),overview!$D$5),\"\")","v":""}]
[19,null,null,null,null,{"$f":"IF(B20<>\"\",IF(overview!$D$5=\"\",IF(overview!$D$6=\"\",\"\",overview!$D$6),overview!$D$5),\"\")","v":""}]
[20,null,null,null,null,{"$f":"IF(B21<>\"\",IF(overview!$D$5=\"\",IF(overview!$D$6=\"\",\"\",overview!$D$6),overview!$D$5),\"\")","v":""}]
[21,null,null,null,null,{"$f":"IF(B22<>\"\",IF(overview!$D$5=\"\",IF(overview!$D$6=\"\",\"\",overview!$D$6),overview!$D$5),\"\")","v":""}]
[22,null,null,null,null,{"$f":"IF(B23<>\"\",IF(overview!$D$5=\"\",IF(overview!$D$6=\"\",\"\",overview!$D$6),overview!$D$5),\"\")","v":""}]
[23,null,null,null,null,{"$f":"IF(B24<>\"\",IF(overview!$D$5=\"\",IF(overview!$D$6=\"\",\"\",overview!$D$6),overview!$D$5),\"\")","v":""}]
[24,null,null,null,null,{"$f":"IF(B25<>\"\",IF(overview!$D$5=\"\",IF(overview!$D$6=\"\",\"\",overview!$D$6),overview!$D$5),\"\")","v":""}]
[25,null,null,null,null,{"$f":"IF(B26<>\"\",IF(overview!$D$5=\"\",IF(overview!$D$6=\"\",\"\",overview!$D$6),overview!$D$5),\"\")","v":""}]
[26,null,null,null,null,{"$f":"IF(B27<>\"\",IF(overview!$D$5=\"\",IF(overview!$D$6=\"\",\"\",overview!$D$6),overview!$D$5),\"\")","v":""}]
[27,null,null,null,null,{"$f":"IF(B28<>\"\",IF(overview!$D$5=\"\",IF(overview!$D$6=\"\",\"\",overview!$D$6),overview!$D$5),\"\")","v":""}]
[28,null,null,null,null,{"$f":"IF(B29<>\"\",IF(overview!$D$5=\"\",IF(overview!$D$6=\"\",\"\",overview!$D$6),overview!$D$5),\"\")","v":""}]
[29,null,null,null,null,{"$f":"IF(B30<>\"\",IF(overview!$D$5=\"\",IF(overview!$D$6=\"\",\"\",overview!$D$6),overview!$D$5),\"\")","v":""}]
[30,null,null,null,null,{"$f":"IF(B31<>\"\",IF(overview!$D$5=\"\",IF(overview!$D$6=\"\",\"\",overview!$D$6),overview!$D$5),\"\")","v":""}]
[31,null,null,null,null,{"$f":"IF(B32<>\"\",IF(overview!$D$5=\"\",IF(overview!$D$6=\"\",\"\",overview!$D$6),overview!$D$5),\"\")","v":""}]
[32,null,null,null,null,{"$f":"IF(B33<>\"\",IF(overview!$D$5=\"\",IF(overview!$D$6=\"\",\"\",overview!$D$6),overview!$D$5),\"\")","v":""}]
[33,null,null,null,null,{"$f":"IF(B34<>\"\",IF(overview!$D$5=\"\",IF(overview!$D$6=\"\",\"\",overview!$D$6),overview!$D$5),\"\")","v":""}]
[34,null,null,null,null,{"$f":"IF(B35<>\"\",IF(overview!$D$5=\"\",IF(overview!$D$6=\"\",\"\",overview!$D$6),overview!$D$5),\"\")","v":""}]
[35,null,null,null,null,{"$f":"IF(B36<>\"\",IF(overview!$D$5=\"\",IF(overview!$D$6=\"\",\"\",overview!$D$6),overview!$D$5),\"\")","v":""}]
[36,null,null,null,null,{"$f":"IF(B37<>\"\",IF(overview!$D$5=\"\",IF(overview!$D$6=\"\",\"\",overview!$D$6),overview!$D$5),\"\")","v":""}]
[37,null,null,null,null,{"$f":"IF(B38<>\"\",IF(overview!$D$5=\"\",IF(overview!$D$6=\"\",\"\",overview!$D$6),overview!$D$5),\"\")","v":""}]
[38,null,null,null,null,{"$f":"IF(B39<>\"\",IF(overview!$D$5=\"\",IF(overview!$D$6=\"\",\"\",overview!$D$6),overview!$D$5),\"\")","v":""}]
[39,null,null,null,null,{"$f":"IF(B40<>\"\",IF(overview!$D$5=\"\",IF(overview!$D$6=\"\",\"\",overview!$D$6),overview!$D$5),\"\")","v":""}]
[40,null,null,null,null,{"$f":"IF(B41<>\"\",IF(overview!$D$5=\"\",IF(overview!$D$6=\"\",\"\",overview!$D$6),overview!$D$5),\"\")","v":""}]
[41,null,null,null,null,{"$f":"IF(B42<>\"\",IF(overview!$D$5=\"\",IF(overview!$D$6=\"\",\"\",overview!$D$6),overview!$D$5),\"\")","v":""}]
[42,null,null,null,null,{"$f":"IF(B43<>\"\",IF(overview!$D$5=\"\",IF(overview!$D$6=\"\",\"\",overview!$D$6),overview!$D$5),\"\")","v":""}]
[43,null,null,null,null,{"$f":"IF(B44<>\"\",IF(overview!$D$5=\"\",IF(overview!$D$6=\"\",\"\",overview!$D$6),overview!$D$5),\"\")","v":""}]
[44,null,null,null,null,{"$f":"IF(B45<>\"\",IF(overview!$D$5=\"\",IF(overview!$D$6=\"\",\"\",overview!$D$6),overview!$D$5),\"\")","v":""}]
[45,null,null,null,null,{"$f":"IF(B46<>\"\",IF(overview!$D$5=\"\",IF(overview!$D$6=\"\",\"\",overview!$D$6),overview!$D$5),\"\")","v":""}]
[46,null,null,null,null,{"$f":"IF(B47<>\"\",IF(overview!$D$5=\"\",IF(overview!$D$6=\"\",\"\",overview!$D$6),overview!$D$5),\"\")","v":""}]
[47,null,null,null,null,{"$f":"IF(B48<>\"\",IF(overview!$D$5=\"\",IF(overview!$D$6=\"\",\"\",overview!$D$6),overview!$D$5),\"\")","v":""}]
[48,null,null,null,null,{"$f":"IF(B49<>\"\",IF(overview!$D$5=\"\",IF(overview!$D$6=\"\",\"\",overview!$D$6),overview!$D$5),\"\")","v":""}]
[49,null,null,null,null,{"$f":"IF(B50<>\"\",IF(overview!$D$5=\"\",IF(overview!$D$6=\"\",\"\",overview!$D$6),overview!$D$5),\"\")","v":""}]
[50,null,null,null,null,{"$f":"IF(B51<>\"\",IF(overview!$D$5=\"\",IF(overview!$D$6=\"\",\"\",overview!$D$6),overview!$D$5),\"\")","v":""}]

{"sheet":"Codestable","index":4,"n_rows":458,"n_cols":6,"rows_kept":458,"cut":false,"hidden":false,"merged":[]}
["Geschlecht","Teamart","Vereine",null,null,"Newa"]
["M","M","1. AJJC Nürnberg",226,null,"u18"]
["W","W","1. AKV Zwickau",285,null,"Beginner"]
[null,"X","1. BC Bechtheim",211,null,"Elite"]
[null,null,"1. FC Brelingen",477]
[null,null,"1. JC Samurai Offenbach",2]
[null,null,"1. JC Worms",209]
[null,null,"1. JJC Frankenthal",206]
[null,null,"1. JJC Ratingen",279]
[null,null,"1. JJJC-Dortmund",167]
[null,null,"1. JJV Bernau",3]
[null,null,"1. JJV Schönebeck",4]
[null,null,"1. Judoclub Weiden",473]
[null,null,"1. Mannheimer JC",120]
[null,null,"1. PJC Schifferstadt",204]
[null,null,"1. Sprendlinger JV",5]
[null,null,"1. Zwickauer SV",249]
[null,null,"1.Chemnitzer JJV",159]
[null,null,"ABK Berlin",287]
[null,null,"AC Altrip",205]
[null,null,"AC Taucha",148]
[null,null,"AFJJ Belgium",431]
[null,null,"Akatuki Kiel",280]
[null,null,"Albstädter Budo Club",221]
[null,null,"Alpha Competition Team ",350]
[null,null,"Alpha Competition Team",422]
[null,null,"Amigos de Luta-Yujin Großefehn",456]
[null,null,"AMTV Hamburg",288]
[null,null,"Anser Team",356]
[null,null,"Arashi Itzehoe",429]
[null,null,"Arashi Sindelfingen",6]
[null,null,"ASV Bingen",186]
[null,null,"ASV Grassau",227]
[null,null,"ASV Kiefersfelden",228]
[null,null,"ATSV Freiberg",158]
[null,null,"ATSV Kronach",116]
[null,null,"BC Arolsen",7]
[null,null,"BC Banzai",10]
[null,null,"BC Betzdorf",192]
[null,null,"BC Biedenkopf",259]
[null,null,"BC Eckental",357]
[null,null,"BC Em/Box Heidelberg",222]
[null,null,"BC Erkelenz",469]
[null,null,"BC Hemsbach",223]
[null,null,"BC Hikari Lauffen",8]
[null,null,"BC Mainz 06",179]
[null,null,"BC Samurai Niedersimten",391]
[null,null,"BC Schaumburg-Lippe",289]
[null,null,"BC Sinsheim",9]
[null,null,"BC Walldorf",119]
[null,null,"BC Westrich Landstuhl",196]
[null,null,"BGSV Weimar",217]
[null,null,"Bramming Ju-Jutsu Klub",362]
[null,null,"BRASA",423]
[null,null,"Braunschweiger JJKV",266]
[null,null,"BS Herdorf",193]
[null,null,"BS Yamato Hürth",11]
[null,null,"BSC Bushido-Ryu Gelsenkirchen",12]
[null,null,"BSC Peine",124]
[null,null,"BSC Samurai Marburg",467]
[null,null,"Bsp Holland",322]
[null,null,"BSV Leese",13]
[null,null,"Budo Circle Konstanz",122]
[null,null,"Budo Club Ryu",457]
[null,null,"Budo Dragons Walldorf",370]
[null,null,"Budo Instituut Kiryoku",309]
[null,null,"Budo-Club Banzai",367]
[null,null,"Budo-Club Berlin",405]
[null,null,"Budo-Sport Rhede e.V.",345]
[null,null,"Budoclub Offenburg",224]
[null,null,"Budokan Braunschweig",237]
[null,null,"Budokan Großbeeren",160]
[null,null,"Budoklubben Shindo Mölndal",311]
[null,null,"Budokwai Öhringen",256]
[null,null,"Budokwai Schwäbisch Hall",123]
[null,null,"Budokwai Steinheim",255]
[null,null,"Budoschool Takken/Shi-Sen-Do",420]
[null,null,"Budoschool Yotosama",315]
[null,null,"Budosport-Gelderland",236]
[null,null,"Budoverein Oelsnitz",216]
[null,null,"Bugari Dimitrovgrad",312]
[null,null,"Bushido Dresden",263]
[null,null,"Bushido Erlensee",69]
[null,null,"Bushido Israel",341]
[null,null,"BZ Rottweil",14]
[null,null,"CCP Monastir",331]
[null,null,"Core Fighting System Osnabrück",458]
[null,null,"Crocodiles Osnabrück",136]
[null,null,"Daitó Ryu Pardubice",282]
[null,null,"Den Edel Gouda",337]
[null,null,"DJK Aschaffenburg",472]
[null,null,"DJK Bous",478]
[null,null,"DJK Dudweiler",396]
[null,null,"DJK Roland Stolberg",286]
[null,null,"Dojo Sochin Travem",393]
[null,null,"Dokan Bühl",15]
[null,null,"DTB Delmenhorst",139]
[null,null,"DTV Delmenhorst",138]
[null,null,"DTV Diespeck",267]
[null,null,"Dynamix Köping",407]
[null,null,"EBJC Berlin",283]
[null,null,"Einbecker JC",16]
[null,null,"El Rincón Del Jiu Jitsu",346]
[null,null,"ELTE BEAC",424]
[null,null,"Erfurter Kampfsportzentrum",399]
[null,null,"Eskilstuna budoklubb",414]
[null,null,"ESV Ludwigshafen",198]
[null,null,"ESV München",229]
[null,null,"FC Blau Weiss Leinach",378]
[null,null,"Federação Ju-Jitsu Portugal",323]
[null,null,"FFJDA",316]
[null,null,"FFJJ",324]
[null,null,"Fight for Life Konstanz",225]
[null,null,"Fighter Emstek",459]
[null,null,"Frederiksberg",365]
[null,null,"FT Jahn Landsberg",17]
[null,null,"Funkstreife München",18]
[null,null,"FZC Philippsburg",19]
[null,null,"Gävle jujutsu",313]
[null,null,"GF Team Academica Braunschweig",460]
[null,null,"Goshin-Dojo Helmstedt",386]
[null,null,"Goshin-Jutsu-No-Michi",408]
[null,null,"Gothia Sports",430]
[null,null,"GTF-Bremen",461]
[null,null,"Happyfitness",425]
[null,null,"Happyfitness Healthcentre",352]
[null,null,"Helmstedter SV",268]
[null,null,"Herlev Ju-Jutsu",364]
[null,null,"Hillerod Ju-Jutsu Klub",361]
[null,null,"Holbæk Budo Skole",366]
[null,null,"Holter SV",21]
[null,null,"HSG Turbine Zittau",250]
[null,null,"HSV Stöckte",132]
[null,null,"Hug & Roll-Team TVE Nordwohlde",462]
[null,null,"Høng Ju-Jutsu Klub",363]
[null,null,"IKSU",413]
[null,null,"Isr Jiu Jitsu",358]
[null,null,"Italy",320]
[null,null,"JC Bietigheim",22]
[null,null,"JC Burg",154]
[null,null,"JC Bushido Delmenhorst",140]
[null,null,"JC Bushido Wüstems",260]
[null,null,"JC Duderstadt",238]
[null,null,"JC Erbach",23]
[null,null,"JC Ford Saarlouis",247]
[null,null,"JC Frankenthal",207]
[null,null,"JC Hofheim",24]
[null,null,"JC Lichtenrade",234]
[null,null,"JC Limburg",25]
[null,null,"JC Malstatt",26]
[null,null,"JC Pforzheim",27]
[null,null,"JC Riestedt",239]
[null,null,"JC Singen",371]
[null,null,"JC St. Ingebert",397]
[null,null,"JC Stegen",28]
[null,null,"JC Velen-Reken",29]
[null,null,"JC Wetzlar",30]
[null,null,"JC Wiesbaden",31]
[null,null,"JC Wörrstadt",185]
[null,null,"Jitoku Neudietendorf",161]
[null,null,"Jiu Jitsu Samurai Kottingbrunn",401]
[null,null,"Jiu Jitsu Verband Österreich",321]
[null,null,"Jiu-Jitsu Association of Korea",453]
[null,null,"JJ Dojo Pyrbaum",344]
[null,null,"JJ Fusegi Kröv",177]
[null,null,"JJ Gochsheim",113]
[null,null,"JJ Herzogenaurach",32]
[null,null,"JJ KSV Rastatt",33]
[null,null,"JJ Rosenheim",34]
[null,null,"JJ Straubing",36]
[null,null,"JJ Tigers-Hutthurm",37]
[null,null,"JJ-HS RWTH/FH Aachen",168]
[null,null,"JJC Bildstock",395]
[null,null,"JJC Boppard",188]
[null,null,"JJC Mühlbachtal",38]
[null,null,"JJC Offenbach",214]
[null,null,"JJC Peine",125]
[null,null,"JJC Rodach",118]
[null,null,"JJC Tanaka Rieden",191]
[null,null,"JJC Wallern",402]
[null,null,"JJJC Mendig ",190]
[null,null,"JJJV Daaden",194]
[null,null,"JJK Samurai",351]
[null,null,"JJSC Wallersdorf",39]
[null,null,"JJT Rostock",40]
[null,null,"JJV Henningsdorf",374]
[null,null,"JJV Ziesar",375]
[null,null,"JKCS Goslar",42]
[null,null,"JSV Ludwigshafen",202]
[null,null,"Ju-Jitsu Association Ukraine",328]
[null,null,"Ju-Jitsu Federation Montenegro",359]
[null,null,"Ju-Jutsu Club Gochsheim",379]
[null,null,"Ju-Jutsu Julbach",230]
[null,null,"Ju-Jutsu St. Wendel",174]
[null,null,"Jujitsu Federation Lanka",455]
[null,null,"JV Siegerland",43]
[null,null,"JVH Hannover",240]
[null,null,"Kaishin Almere",426]
[null,null,"Kampfkunst Bodensee",372]
[null,null,"Kampfkunst Bodetal",218]
[null,null,"Kampfkunst Michelstadt",165]
[null,null,"Kampfkunstschule Amberg",470]
[null,null,"Karigane Bamberg",44]
[null,null,"KMA Köping",310]
[null,null,"Kodokan Ditzingen",257]
[null,null,"Kodokan Erfurt",253]
[null,null,"Kodokan Norderstedt",45]
[null,null,"Kolpingfamilie Kell am See",175]
[null,null,"Kraftverket",318]
[null,null,"Kristiansand ju jitsu klubb",327]
[null,null,"KS Lüneburg",46]
[null,null,"KS Meppen",141]
[null,null,"KSC Amberg",47]
[null,null,"KSC Bruckneudor",403]
[null,null,"KSC Hanau",215]
[null,null,"KSG Naumburg",150]
[null,null,"KSG Ran",48]
[null,null,"KSG Zeitz",1]
[null,null,"KSV Walldorf",50]
[null,null,"Kumla Kampsportförening",308]
[null,null,"Leinefelder JJV",156]
[null,null,"LKS Gerolzhofen",51]
[null,null,"Lübecker JC",52]
[null,null,"Macedonian Ju Jitsu Federation",330]
[null,null,"Martial sports 38",416]
[null,null,"México team",336]
[null,null,"MMA Spirit",427]
[null,null,"Möllner SV",394]
[null,null,"Morocco Ju-Jitsu Federation",454]
[null,null,"MTV Goslar",126]
[null,null,"MTV Pfaffenhofen",474]
[null,null,"MTV Ramelsloh",135]
[null,null,"MTV Röllinghausen",387]
[null,null,"MTV Rottorf",53]
[null,null,"MTV Schöningen",127]
[null,null,"MTV Stadeln",231]
[null,null,"MTV Treubung Lüneburg",463]
[null,null,"MTV Vorsfelde",128]
[null,null,"MTV Wolfenbüttel",241]
[null,null,"N&F ALEKSINAC ",415]
[null,null,"Nacka Dojo",306]
[null,null,"Nippon Berlin",376]
[null,null,"Nivelles BEL",342]
[null,null,"NKC",428]
[null,null,"Norrahammars Jujutsu",326]
[null,null,"OKK Neustadt",129]
[null,null,"OT Bremen",54]
[null,null,"Poland",332]
[null,null,"Post SV Ludwigshafen",200]
[null,null,"Post SV Mainz",178]
[null,null,"Post SV Nürnberg",56]
[null,null,"PSV Aschersleben",146]
[null,null,"PSV Aue",398]
[null,null,"PSV Basdorf",57]
[null,null,"PSV Bautzen",265]
[null,null,"PSV Bernburg",58]
[null,null,"PSV Bielefeld",169]
[null,null,"PSV Braunschweig",59]
[null,null,"PSV Chemnitz",264]
[null,null,"PSV Grün-Weiß Frankfurt",381]
[null,null,"PSV GW Kassel",61]
[null,null,"PSV Hohenstein Ernstthal",151]
[null,null,"PSV Kamenz",149]
[null,null,"PSV Karlsruhe",121]
[null,null,"PSV Lippe-Detmold",60]
[null,null,"PSV Ludwigshafen",199]
[null,null,"PSV Magdeburg",251]
[null,null,"PSV Mainz",180]
[null,null,"PSV Meiningen",63]
[null,null,"PSV Neunkirchen",290]
[null,null,"PSV Oldenburg",64]
[null,null,"PSV Saarbrücken",173]
[null,null,"PSV Schwarzenberg",262]
[null,null,"PSV Wanzleben",152]
[null,null,"PSV Wengerohr",176]
[null,null,"PSV Wiesbaden",62]
[null,null,"PSV Wuppertal",65]
[null,null,"Randori Bernau",284]
[null,null,"Ribe Ju-Jutsuklub",360]
[null,null,"Romanian Martial Arts",305]
[null,null,"Rurberger SV",66]
[null,null,"Russian Jiu-Jitsu Federation",339]
[null,null,"RW Cuxhaven",466]
[null,null,"Samurai Lichtenau",67]
[null,null,"SC Budokan Bocholt",68]
[null,null,"SC Bushido Frankfurt",70]
[null,null,"SC Essehof",71]
[null,null,"SC Hannover",242]
[null,null,"SC Ibersheim",210]
[null,null,"SC Lämershagen",389]
[null,null,"SC Lotos Berlin",369]
[null,null,"SC Nest",269]
[null,null,"SC Petershagen",390]
[null,null,"SC Pinneberg",270]
[null,null,"SC Schweinfurth",115]
[null,null,"SC Unterpfaffenhofen Germering",291]
[null,null,"SC Wasungen",271]
[null,null,"Seibukan Berlin",72]
[null,null,"Seishin Weimar",254]
[null,null,"SG Blankenburg",153]
[null,null,"SG Essenheim",182]
[null,null,"SG Franken Sennfeld",117]
[null,null,"SG Kelkheim",164]
[null,null,"SG Rot-Weiß Neuenhagen",220]
[null,null,"Shindo",417]
[null,null,"Shintai Dojo",73]
[null,null,"Shouri",347]
[null,null,"Siberian Leopard",410]
[null,null,"Slask",335]
[null,null,"Söderskogs IF",340]
[null,null,"Sportcenter Bushido Landau",213]
[null,null,"Sportinn Steenwijk",314]
[null,null,"Sportschool Sakura",418]
[null,null,"Sportschule Mayer LU",201]
[null,null,"SpSch Kappelmeyer",74]
[null,null,"SSV Hommertshausen",75]
[null,null,"Suum Cuique Mainz",181]
[null,null,"SV Eidelstedt",76]
[null,null,"SV Esting",77]
[null,null,"SV Furpach",248]
[null,null,"SV Gendorf Burgkirchen",78]
[null,null,"SV Groitzsch",147]
[null,null,"SV Ilmenau",79]
[null,null,"SV Krechting",170]
[null,null,"SV Kumhausen",349]
[null,null,"SV Lurup",293]
[null,null,"SV Menden",80]
[null,null,"SV Niederroth",81]
[null,null,"SV Oberdürrbach",82]
[null,null,"SV Polizei Hamburg",83]
[null,null,"SV Schorfheide",219]
[null,null,"SV St. Leon Rot",294]
[null,null,"SV Tennlohe",232]
[null,null,"SV Zwiesel",292]
[null,null,"SVE Hamburg",295]
[null,null,"SVF Ludwigshafen",296]
[null,null,"SW Oldenburg",143]
[null,null,"Switzerland",325]
[null,null,"Tatami Süpplingen",484]
[null,null,"TB Lengede",133]
[null,null,"TB Stöcken",243]
[null,null,"Team Belgium",404]
[null,null,"Team Denmark",406]
[null,null,"Team Greece",409]
[null,null,"Team Israel",433]
[null,null,"Team Mauritius",432]
[null,null,"Team Norway",411]
[null,null,"Team scorpion",355]
[null,null,"Team Slovenia",333]
[null,null,"Ten-Shin Stendal",272]
[null,null,"TG Hanau",84]
[null,null,"TG Herford",475]
[null,null,"TG Höchberg",85]
[null,null,"TG Wiesmoor",144]
[null,null,"TG Würzburg-Heidingsfeld",354]
[null,null,"TiP-Berlin",368]
[null,null,"TKW Nienburg",86]
[null,null,"Tokio-Hirano Köln",87]
[null,null,"TPSV Enkenbach",212]
[null,null,"TS Rodalben",273]
[null,null,"TSG Erlensee",382]
[null,null,"TSG Friesenheim",274]
[null,null,"TSG Heilbronn",88]
[null,null,"TSG Mainz-Bretzenheim",392]
[null,null,"TSG Wiesloch",297]
[null,null,"TSV 1880 Schwandorf",90]
[null,null,"TSV Ahausen",134]
[null,null,"TSV Aichach",298]
[null,null,"TSV Bahrdorf",275]
[null,null,"TSV Bassen",479]
[null,null,"TSV Bergen",91]
[null,null,"TSV Burgebrach",92]
[null,null,"TSV Eberg",244]
[null,null,"TSV Egestorf",130]
[null,null,"TSV Elstorf",93]
[null,null,"TSV Freilassing",112]
[null,null,"TSV Kottern-Sankt Mang",299]
[null,null,"TSV Leinach",380]
[null,null,"TSV Lesse",94]
[null,null,"TSV Lindenberg",281]
[null,null,"TSV Mittenwald",276]
[null,null,"TSV Nördlingen",95]
[null,null,"TSV Osterholz-Tenever",377]
[null,null,"TSV Posthausen",96]
[null,null,"TSV Ratekau",252]
[null,null,"TSV Rodenbach",162]
[null,null,"TSV Staffelstein",97]
[null,null,"TSV Teilheim",277]
[null,null,"TSV Timmerlah",278]
[null,null,"TSV Weikersheim",98]
[null,null,"TSV Westerhausen",480]
[null,null,"TSV Winsen",137]
[null,null,"Turngemeinde in Berlin",476]
[null,null,"TuS Apelern",131]
[null,null,"TuS Aurich Ost",99]
[null,null,"TuS Berne",100]
[null,null,"TuS Bloherfelde",142]
[null,null,"TuS Dotzheim",101]
[null,null,"TuS Durmersheim",102]
[null,null,"TuS Ehrentrup",171]
[null,null,"TuS Finkenwerder",103]
[null,null,"TuS Oggersheim  ",203]
[null,null,"TUS Prien",471]
[null,null,"TUS Reppenstedt",388]
[null,null,"TuS Wallmerod",189]
[null,null,"TV 1834 Pforzheim",373]
[null,null,"TV 1863 Pirmasens  ",197]
[null,null,"TV 1868 Burghausen",89]
[null,null,"TV 1868 Burghausen",104]
[null,null,"TV 1879 Hilpoltstein",105]
[null,null,"TV 1880 Nabburg",343]
[null,null,"TV 1893 Marsberg",353]
[null,null,"TV 87 Stadtoldendorf",106]
[null,null,"TV Altdorf",300]
[null,null,"TV Bad Mergentheim",258]
[null,null,"TV Dienheim",183]
[null,null,"TV Dillingen",301]
[null,null,"TV Dingolfing",481]
[null,null,"TV Eiche Horn Bremen",235]
[null,null,"TV Einigkeit Waltrop",107]
[null,null,"TV Eschersheim",383]
[null,null,"TV Gladenbach",166]
[null,null,"TV Hersfeld",261]
[null,null,"TV Kirchheimbolanden",208]
[null,null,"TV Neugablonz",114]
[null,null,"TV Nieder-Olm",184]
[null,null,"TV Paderborn",172]
[null,null,"TV Papenburg",109]
[null,null,"TV Rosbach",384]
[null,null,"TV Wunsiedel",302]
[null,null,"TV Zweibrücken",195]
[null,null,"TVG Mingerode",245]
[null,null,"Upiter",329]
[null,null,"US Orleans judo jujitsu",319]
[null,null,"USC Magdeburg",110]
[null,null,"USV Jena",155]
[null,null,"USV TU Dresden",482]
[null,null,"V.J.J.F. vzw",317]
[null,null,"Van de Kamp Sport",464]
[null,null,"van Diermen sport Soest",307]
[null,null,"van Haren Sport",412]
[null,null,"Växjö Jujutsuklubb",348]
[null,null,"Vfl Bad Iburg",145]
[null,null,"VfL Bad Kreuznach",187]
[null,null,"VFL Bückeburg",465]
[null,null,"VFL Eppelsheim",468]
[null,null,"VfL Grasdorf",483]
[null,null,"VfL Westercelle",111]
[null,null,"VfL Wolfsburg",246]
[null,null,"Victor Pradera",419]
[null,null,"VZW Saigen",421]
[null,null,"Wado Te Jutsu Leopoldstadt",400]
[null,null,"Wernamo ju-jutsu club",338]
[null,null,"WSV Aschau",233]
[null,null,"Yama Arashi Herborn",385]
[null,null,"Yawara Meiningen",157]
[null,null,"Yawara Neuhaus",304]
[null,null,"Zanshin Dojo Hamburg",303]